[Event "*** MasterClass Titled Tuesday Blitz"]
[Site "Chess.com"]
[Date "2017.12.12"]
[Round "10"]
[White "RoelandPruijssers"]
[Black "kereswasbest"]
[Result "1-0"]
[WhiteElo "2465"]
[BlackElo "2216"]
[TimeControl "180+2"]
[EndTime "15:15:47 PST"]
[Termination "RoelandPruijssers won by resignation"]

1. d4 {[%clk 0:03:01.9]} 1... Nf6 {[%clk 0:02:59.8]} 2. c4 {[%clk 0:03:03]} 2...
e6 {[%clk 0:02:58.7]} 3. Nf3 {[%clk 0:03:03.3]} 3... d5 {[%clk 0:02:55]} 4. Nc3
{[%clk 0:03:02.8]} 4... Bb4 {[%clk 0:02:54.8]} 5. cxd5 {[%clk 0:03:02.4]} 5...
exd5 {[%clk 0:02:55.3]} 6. Qc2 {[%clk 0:03:04]} 6... O-O {[%clk 0:02:55.6]} 7.
Bg5 {[%clk 0:03:05.5]} 7... h6 {[%clk 0:02:54.6]} 8. Bh4 {[%clk 0:03:05.4]} 8...
Be7 {[%clk 0:02:48.3]} 9. e3 {[%clk 0:03:03.4]} 9... c6 {[%clk 0:02:41]} 10. Bd3
{[%clk 0:03:03.9]} 10... Nbd7 {[%clk 0:02:41.3]} 11. O-O-O {[%clk 0:03:01.7]}
11... Re8 {[%clk 0:02:31]} 12. Ne5 {[%clk 0:03:02.6]} 12... Nxe5 {[%clk
0:02:31]} 13. dxe5 {[%clk 0:03:04.5]} 13... Nd7 {[%clk 0:02:31.6]} 14. Bxe7
{[%clk 0:03:04.9]} 14... Qxe7 {[%clk 0:02:31.8]} 15. f4 {[%clk 0:03:06.4]} 15...
Nc5 {[%clk 0:02:32]} 16. Bh7+ {[%clk 0:02:48.3]} 16... Kh8 {[%clk 0:02:31.2]}
17. g4 {[%clk 0:02:45]} 17... f6 {[%clk 0:02:31.1]} 18. Bg6 {[%clk 0:02:44.2]}
18... Rf8 {[%clk 0:02:21.4]} 19. exf6 {[%clk 0:02:37.6]} 19... Qxe3+ {[%clk
0:02:20.2]} 20. Kb1 {[%clk 0:02:38.5]} 20... Bxg4 {[%clk 0:02:06.4]} 21. fxg7+
{[%clk 0:02:37.1]} 21... Kxg7 {[%clk 0:02:06.3]} 22. Rde1 {[%clk 0:02:37.2]}
22... Qxf4 {[%clk 0:01:55]} 23. Re7+ {[%clk 0:02:37.5]} 23... Kh8 {[%clk
0:01:44.9]} 24. Rh7+ {[%clk 0:02:06.5]} 24... Kg8 {[%clk 0:01:44.5]} 25. Bf7+
{[%clk 0:02:01]} 25... Rxf7 {[%clk 0:01:41]} 26. Qg6+ {[%clk 0:02:01.7]} 26...
Kf8 {[%clk 0:01:41.7]} 27. Rxf7+ {[%clk 0:02:02.3]} 27... Qxf7 {[%clk
0:01:41.6]} 28. Qxg4 {[%clk 0:02:02.4]} 28... Re8 {[%clk 0:01:34.7]} 29. Qh3
{[%clk 0:02:01.5]} 29... Ne4 {[%clk 0:01:28.6]} 30. Nxe4 {[%clk 0:01:58.3]}
30... Rxe4 {[%clk 0:01:29.4]} 31. Rf1 {[%clk 0:01:59.2]} 31... Rf4 {[%clk
0:01:30.2]} 32. Qxh6+ {[%clk 0:01:58.9]} 1-0

[Event "*** MasterClass Titled Tuesday Blitz"]
[Site "Chess.com"]
[Date "2017.12.12"]
[Round "10"]
[White "Vincent_Vega95"]
[Black "TomsKantans"]
[Result "0-1"]
[WhiteElo "2561"]
[BlackElo "2457"]
[TimeControl "180+2"]
[EndTime "15:16:27 PST"]
[Termination "TomsKantans won by resignation"]

1. d4 {[%clk 0:02:59.7]} 1... Nf6 {[%clk 0:02:56.3]} 2. c4 {[%clk 0:02:58.3]}
2... g6 {[%clk 0:02:57.3]} 3. Nc3 {[%clk 0:02:59.4]} 3... d5 {[%clk 0:02:58.5]}
4. Nf3 {[%clk 0:02:58]} 4... Bg7 {[%clk 0:02:59.2]} 5. h4 {[%clk 0:02:56.1]}
5... dxc4 {[%clk 0:02:54.7]} 6. e4 {[%clk 0:02:56.6]} 6... c5 {[%clk 0:02:56.1]}
7. d5 {[%clk 0:02:57.8]} 7... b5 {[%clk 0:02:56.9]} 8. h5 {[%clk 0:02:57.7]}
8... O-O {[%clk 0:02:58.1]} 9. hxg6 {[%clk 0:02:54.4]} 9... fxg6 {[%clk
0:02:58.9]} 10. e5 {[%clk 0:02:23.1]} 10... Ng4 {[%clk 0:02:57.8]} 11. Nxb5
{[%clk 0:02:11.2]} 11... Ba6 {[%clk 0:01:24.6]} 12. Nc3 {[%clk 0:02:04.7]} 12...
Nxe5 {[%clk 0:01:08.2]} 13. Ng5 {[%clk 0:02:05.2]} 13... Nd3+ {[%clk 0:00:59.8]}
14. Bxd3 {[%clk 0:02:05.3]} 14... cxd3 {[%clk 0:01:01.7]} 15. Rxh7 {[%clk
0:01:49.5]} 15... Bxc3+ {[%clk 0:00:20.8]} 16. bxc3 {[%clk 0:01:49.5]} 16...
Qxd5 {[%clk 0:00:22.1]} 17. Qg4 {[%clk 0:01:45.7]} 17... Qe5+ {[%clk 0:00:17]}
18. Kd2 {[%clk 0:01:40.7]} 18... Rxf2+ {[%clk 0:00:17.3]} 0-1

[Event "*** MasterClass Titled Tuesday Blitz"]
[Site "Chess.com"]
[Date "2017.12.12"]
[Round "10"]
[White "lucasmito"]
[Black "TijanaBlagojevic"]
[Result "0-1"]
[WhiteElo "2230"]
[BlackElo "2381"]
[TimeControl "180+2"]
[EndTime "15:17:13 PST"]
[Termination "TijanaBlagojevic won by checkmate"]

1. e4 {[%clk 0:03:01.9]} 1... e5 {[%clk 0:03:00.5]} 2. f4 {[%clk 0:02:58.5]}
2... d5 {[%clk 0:03:00.8]} 3. exd5 {[%clk 0:02:56.1]} 3... exf4 {[%clk
0:03:01.8]} 4. Nf3 {[%clk 0:02:57.2]} 4... Nf6 {[%clk 0:03:02.9]} 5. c4 {[%clk
0:02:55.8]} 5... c6 {[%clk 0:03:03.3]} 6. d4 {[%clk 0:02:56.7]} 6... cxd5 {[%clk
0:03:03.5]} 7. c5 {[%clk 0:02:57.5]} 7... Be7 {[%clk 0:02:58.2]} 8. Bxf4 {[%clk
0:02:52.8]} 8... O-O {[%clk 0:02:59]} 9. Nc3 {[%clk 0:02:51.6]} 9... b6 {[%clk
0:02:53]} 10. cxb6 {[%clk 0:02:26.6]} 10... Qxb6 {[%clk 0:02:48]} 11. Qd2 {[%clk
0:02:25.6]} 11... Nc6 {[%clk 0:02:39.9]} 12. Bd3 {[%clk 0:02:25.9]} 12... Bg4
{[%clk 0:02:38.3]} 13. Be5 {[%clk 0:02:20.1]} 13... Bxf3 {[%clk 0:02:24]} 14.
gxf3 {[%clk 0:02:19.6]} 14... Nxe5 {[%clk 0:02:22.1]} 15. dxe5 {[%clk
0:02:19.1]} 15... Qe6 {[%clk 0:02:23.7]} 16. f4 {[%clk 0:01:59.8]} 16... Bb4
{[%clk 0:02:19.1]} 17. Qe2 {[%clk 0:01:35.5]} 17... Nd7 {[%clk 0:02:07.2]} 18.
O-O {[%clk 0:01:22.3]} 18... Rac8 {[%clk 0:02:00.9]} 19. Rae1 {[%clk 0:01:06.8]}
19... Nc5 {[%clk 0:01:54.2]} 20. Bb1 {[%clk 0:00:59.4]} 20... d4 {[%clk
0:01:53.8]} 21. f5 {[%clk 0:00:57.4]} 21... Qh6 {[%clk 0:01:49.6]} 22. Qc4
{[%clk 0:00:41.2]} 22... a5 {[%clk 0:01:30.1]} 23. Qxd4 {[%clk 0:00:35.7]} 23...
Rfd8 {[%clk 0:01:26.1]} 24. Qg4 {[%clk 0:00:25.3]} 24... Rd2 {[%clk 0:01:18.2]}
25. f6 {[%clk 0:00:18.6]} 25... Qxh2# {[%clk 0:01:17.7]} 0-1

[Event "*** MasterClass Titled Tuesday Blitz"]
[Site "Chess.com"]
[Date "2017.12.12"]
[Round "10"]
[White "Blitzstream"]
[Black "cheese111"]
[Result "0-1"]
[WhiteElo "2467"]
[BlackElo "2436"]
[TimeControl "180+2"]
[EndTime "15:17:40 PST"]
[Termination "cheese111 won by checkmate"]

1. g4 {[%clk 0:03:01.9]} 1... d5 {[%clk 0:03:00.5]} 2. Bg2 {[%clk 0:03:02.3]}
2... Bxg4 {[%clk 0:03:01.6]} 3. c4 {[%clk 0:03:03]} 3... c6 {[%clk 0:03:02.9]}
4. Qb3 {[%clk 0:03:04.1]} 4... Nf6 {[%clk 0:02:54.6]} 5. Nc3 {[%clk 0:02:40]}
5... e6 {[%clk 0:02:43.8]} 6. cxd5 {[%clk 0:02:40.5]} 6... cxd5 {[%clk
0:02:40.5]} 7. Qxb7 {[%clk 0:02:35.4]} 7... Nbd7 {[%clk 0:02:41.5]} 8. d3 {[%clk
0:02:20.3]} 8... Bc5 {[%clk 0:02:32.4]} 9. Nf3 {[%clk 0:01:52.2]} 9... O-O
{[%clk 0:02:30.6]} 10. O-O {[%clk 0:01:51.8]} 10... Rb8 {[%clk 0:02:28.8]} 11.
Qa6 {[%clk 0:01:52.5]} 11... Bxf3 {[%clk 0:01:54.9]} 12. Bxf3 {[%clk 0:01:51]}
12... Ne5 {[%clk 0:01:55.6]} 13. Bg2 {[%clk 0:01:51.9]} 13... Nfg4 {[%clk
0:01:40.5]} 14. Bf4 {[%clk 0:01:46.3]} 14... Ng6 {[%clk 0:00:37]} 15. Bg3 {[%clk
0:01:42]} 15... Rb4 {[%clk 0:00:07]} 16. h3 {[%clk 0:01:38.6]} 16... Nf6 {[%clk
0:00:07.4]} 17. a3 {[%clk 0:01:29.5]} 17... Rb6 {[%clk 0:00:07.5]} 18. Qxa7
{[%clk 0:01:24.8]} 18... Nh5 {[%clk 0:00:05.8]} 19. Bc7 {[%clk 0:01:22.4]} 19...
Qg5 {[%clk 0:00:06.6]} 20. e3 {[%clk 0:01:12.4]} 20... Nh4 {[%clk 0:00:05.5]}
21. Bg3 {[%clk 0:01:07.6]} 21... Nxg3 {[%clk 0:00:06.5]} 22. fxg3 {[%clk
0:01:08.5]} 22... Qxg3 {[%clk 0:00:06.1]} 23. Rf2 {[%clk 0:01:09.5]} 23... Bxe3
{[%clk 0:00:07]} 24. Kh1 {[%clk 0:01:00.7]} 24... Bxf2 {[%clk 0:00:07.5]} 25.
Bf1 {[%clk 0:00:52.9]} 25... Qg1# {[%clk 0:00:07.8]} 0-1

[Event "*** MasterClass Titled Tuesday Blitz"]
[Site "Chess.com"]
[Date "2017.12.12"]
[Round "10"]
[White "dawtonlms"]
[Black "truki"]
[Result "1-0"]
[WhiteElo "2269"]
[BlackElo "2202"]
[TimeControl "180+2"]
[EndTime "15:17:43 PST"]
[Termination "dawtonlms won by resignation"]

1. e4 {[%clk 0:03:01.9]} 1... c6 {[%clk 0:03:00.2]} 2. d4 {[%clk 0:03:02.6]}
2... d5 {[%clk 0:03:02.1]} 3. exd5 {[%clk 0:03:03.8]} 3... cxd5 {[%clk
0:03:02.6]} 4. c4 {[%clk 0:03:05.4]} 4... Nf6 {[%clk 0:03:03.3]} 5. Nc3 {[%clk
0:03:07]} 5... Nc6 {[%clk 0:03:04.6]} 6. Bg5 {[%clk 0:03:07.5]} 6... dxc4 {[%clk
0:03:00.8]} 7. d5 {[%clk 0:03:07.8]} 7... Ne5 {[%clk 0:02:55.3]} 8. Qd4 {[%clk
0:03:07.8]} 8... h6 {[%clk 0:02:55]} 9. Qxe5 {[%clk 0:03:07.1]} 9... hxg5 {[%clk
0:02:55.4]} 10. Bxc4 {[%clk 0:03:08.6]} 10... a6 {[%clk 0:02:44.2]} 11. O-O-O
{[%clk 0:03:02]} 11... g4 {[%clk 0:02:37.5]} 12. Nge2 {[%clk 0:02:54.9]} 12...
g6 {[%clk 0:02:30.6]} 13. d6 {[%clk 0:02:52.6]} 13... e6 {[%clk 0:02:22.1]} 14.
Nf4 {[%clk 0:02:43.1]} 14... Bg7 {[%clk 0:01:53.6]} 15. Nxe6 {[%clk 0:02:32.7]}
15... Bxe6 {[%clk 0:01:50.5]} 16. Bxe6 {[%clk 0:02:33.3]} 16... O-O {[%clk
0:01:51.4]} 17. Bb3 {[%clk 0:02:22.9]} 17... Rc8 {[%clk 0:01:45.6]} 18. Kb1
{[%clk 0:02:19.8]} 18... Nd7 {[%clk 0:01:44.3]} 19. Qe4 {[%clk 0:02:01.6]} 19...
Bxc3 {[%clk 0:01:34]} 20. bxc3 {[%clk 0:02:03.5]} 20... Rxc3 {[%clk 0:01:34.8]}
21. Qxg6+ {[%clk 0:02:00.3]} 21... Kh8 {[%clk 0:01:32.3]} 22. Qh6+ {[%clk
0:02:01]} 22... Kg8 {[%clk 0:01:33.4]} 23. Rd5 {[%clk 0:02:00.4]} 23... Rc5
{[%clk 0:01:29.7]} 24. Rhd1 {[%clk 0:01:50.1]} 24... Qe8 {[%clk 0:01:03.8]} 25.
Rg5+ {[%clk 0:01:35.7]} 25... Rxg5 {[%clk 0:01:03.9]} 26. Qxg5+ {[%clk
0:01:37.6]} 26... Kh7 {[%clk 0:01:03.4]} 27. Qh5+ {[%clk 0:01:39.1]} 27... Kg7
{[%clk 0:01:04.3]} 28. Qxg4+ {[%clk 0:01:40.3]} 28... Kh7 {[%clk 0:01:04.2]} 29.
Qh5+ {[%clk 0:01:39.1]} 29... Kg7 {[%clk 0:01:05.2]} 30. Qg5+ {[%clk 0:01:39.5]}
30... Kh7 {[%clk 0:01:06.4]} 31. Rd3 {[%clk 0:00:46.1]} 31... Qe1+ {[%clk
0:01:03.1]} 32. Bd1 {[%clk 0:00:42.4]} 32... Qb4+ {[%clk 0:01:02.4]} 33. Ka1
{[%clk 0:00:42.9]} 1-0

[Event "*** MasterClass Titled Tuesday Blitz"]
[Site "Chess.com"]
[Date "2017.12.12"]
[Round "10"]
[White "Keaton87"]
[Black "Parhamov"]
[Result "1-0"]
[WhiteElo "2546"]
[BlackElo "2724"]
[TimeControl "180+2"]
[EndTime "15:18:06 PST"]
[Termination "Keaton87 won by resignation"]

1. e4 {[%clk 0:03:01.9]} 1... c6 {[%clk 0:03:00.9]} 2. d4 {[%clk 0:03:01.3]}
2... d5 {[%clk 0:02:59.8]} 3. Nd2 {[%clk 0:03:02.2]} 3... dxe4 {[%clk
0:03:00.6]} 4. Nxe4 {[%clk 0:03:04.1]} 4... Nf6 {[%clk 0:03:01.6]} 5. Nxf6+
{[%clk 0:03:05.3]} 5... exf6 {[%clk 0:03:03]} 6. Ne2 {[%clk 0:02:56]} 6... Bd6
{[%clk 0:03:04.1]} 7. g3 {[%clk 0:02:57]} 7... O-O {[%clk 0:03:05.1]} 8. Bg2
{[%clk 0:02:58.3]} 8... Re8 {[%clk 0:03:05.2]} 9. O-O {[%clk 0:02:59.2]} 9...
Bg4 {[%clk 0:03:06.3]} 10. f3 {[%clk 0:03:00.2]} 10... Bf5 {[%clk 0:03:07.7]}
11. Bf4 {[%clk 0:02:59.4]} 11... Rxe2 {[%clk 0:03:08.6]} 12. Qxe2 {[%clk
0:02:59.2]} 12... Bxf4 {[%clk 0:03:09.8]} 13. gxf4 {[%clk 0:03:00.4]} 13... Nd7
{[%clk 0:03:10.2]} 14. Kh1 {[%clk 0:02:54.9]} 14... Nf8 {[%clk 0:03:11.4]} 15.
c3 {[%clk 0:02:54]} 15... Ne6 {[%clk 0:03:12.6]} 16. Qd2 {[%clk 0:02:52.6]}
16... Qd6 {[%clk 0:03:12.2]} 17. Rg1 {[%clk 0:02:50.9]} 17... Nxf4 {[%clk
0:03:13.1]} 18. Bf1 {[%clk 0:02:51.8]} 18... h5 {[%clk 0:03:14.5]} 19. Re1
{[%clk 0:02:30.8]} 19... Be6 {[%clk 0:03:11.5]} 20. Qf2 {[%clk 0:02:28.9]} 20...
Ng6 {[%clk 0:03:04]} 21. Bd3 {[%clk 0:02:24.9]} 21... f5 {[%clk 0:03:02]} 22.
Rg5 {[%clk 0:02:23.6]} 22... h4 {[%clk 0:02:57]} 23. Bxf5 {[%clk 0:02:23.4]}
23... Qf4 {[%clk 0:02:55.1]} 24. Rxg6 {[%clk 0:02:15.5]} 24... Qxf5 {[%clk
0:02:56.3]} 25. Rg4 {[%clk 0:01:40.9]} 25... Bd5 {[%clk 0:02:55.6]} 26. Rxh4
{[%clk 0:01:42]} 26... g5 {[%clk 0:02:51.6]} 27. Rhe4 {[%clk 0:01:33.8]} 27...
Bxe4 {[%clk 0:02:48.6]} 28. Rxe4 {[%clk 0:01:35.7]} 28... Kg7 {[%clk 0:02:50]}
29. Qe3 {[%clk 0:01:35.4]} 29... Rh8 {[%clk 0:02:48.7]} 30. Rg4 {[%clk
0:01:27.2]} 30... f6 {[%clk 0:02:39]} 31. Qe7+ {[%clk 0:01:25.1]} 31... Kh6
{[%clk 0:02:35.2]} 32. Qe4 {[%clk 0:01:19.9]} 32... Qb5 {[%clk 0:02:34]} 33. Rg3
{[%clk 0:00:53.3]} 33... Qf1+ {[%clk 0:02:31.3]} 34. Rg1 {[%clk 0:00:54.3]}
34... Qh3 {[%clk 0:02:25.8]} 35. Qg4 {[%clk 0:00:52.2]} 35... Qxg4 {[%clk
0:02:26.9]} 36. Rxg4 {[%clk 0:00:48.9]} 36... f5 {[%clk 0:02:25.4]} 37. Rg2
{[%clk 0:00:46]} 37... Re8 {[%clk 0:02:26.8]} 38. Kg1 {[%clk 0:00:47.1]} 38...
Re1+ {[%clk 0:02:26.3]} 39. Kf2 {[%clk 0:00:48]} 39... Ra1 {[%clk 0:02:25.7]}
40. a3 {[%clk 0:00:47.5]} 40... f4 {[%clk 0:02:26.9]} 41. Ke2 {[%clk 0:00:45.5]}
41... Kh5 {[%clk 0:02:26.3]} 42. Kd3 {[%clk 0:00:46.7]} 42... Rf1 {[%clk
0:02:25.8]} 43. Ke4 {[%clk 0:00:47.2]} 43... Re1+ {[%clk 0:02:26.8]} 44. Kf5
{[%clk 0:00:48.3]} 44... Kh4 {[%clk 0:02:24.2]} 45. Rxg5 {[%clk 0:00:45]} 45...
Re2 {[%clk 0:02:23]} 46. b4 {[%clk 0:00:42.9]} 46... Re3 {[%clk 0:02:22.9]} 47.
Kxf4 {[%clk 0:00:42.7]} 47... Rxc3 {[%clk 0:02:24.2]} 48. Rg7 {[%clk 0:00:43.7]}
48... Kh3 {[%clk 0:02:24.5]} 49. Rxb7 {[%clk 0:00:44.6]} 49... Kxh2 {[%clk
0:02:25.6]} 50. Rxa7 {[%clk 0:00:45.6]} 50... Kg2 {[%clk 0:02:27.1]} 51. Ke4
{[%clk 0:00:44.2]} 51... Kf2 {[%clk 0:02:27.2]} 52. f4 {[%clk 0:00:45.4]} 52...
Re3+ {[%clk 0:02:25.5]} 53. Kf5 {[%clk 0:00:46.4]} 53... Kf3 {[%clk 0:02:26.6]}
54. Ra6 {[%clk 0:00:43.6]} 54... Rd3 {[%clk 0:02:26.6]} 55. Rxc6 {[%clk
0:00:40.5]} 55... Rxa3 {[%clk 0:02:27.6]} 56. b5 {[%clk 0:00:41.4]} 56... Rd3
{[%clk 0:02:26]} 57. b6 {[%clk 0:00:41.4]} 57... Rxd4 {[%clk 0:02:27.3]} 58.
Rc3+ {[%clk 0:00:42.1]} 58... Ke2 {[%clk 0:02:27.9]} 59. Rb3 {[%clk 0:00:43.4]}
59... Rd8 {[%clk 0:02:29]} 60. b7 {[%clk 0:00:44.7]} 60... Rb8 {[%clk
0:02:30.4]} 61. Ke6 {[%clk 0:00:45.8]} 1-0

[Event "*** MasterClass Titled Tuesday Blitz"]
[Site "Chess.com"]
[Date "2017.12.12"]
[Round "10"]
[White "Angry_Serb"]
[Black "chesstatour"]
[Result "1-0"]
[WhiteElo "2422"]
[BlackElo "1996"]
[TimeControl "180+2"]
[EndTime "15:18:09 PST"]
[Termination "Angry_Serb won by resignation"]

1. e4 {[%clk 0:03:01.9]} 1... c6 {[%clk 0:02:59.9]} 2. d4 {[%clk 0:03:02.6]}
2... d5 {[%clk 0:03:01.7]} 3. exd5 {[%clk 0:03:03]} 3... cxd5 {[%clk 0:03:03.6]}
4. Nf3 {[%clk 0:03:04.6]} 4... Nc6 {[%clk 0:03:03.9]} 5. Be2 {[%clk 0:03:06.5]}
5... g6 {[%clk 0:03:04]} 6. O-O {[%clk 0:03:08.4]} 6... Bg7 {[%clk 0:03:05.6]}
7. c4 {[%clk 0:03:09.2]} 7... Nf6 {[%clk 0:03:06]} 8. Nc3 {[%clk 0:03:10]} 8...
O-O {[%clk 0:03:07.1]} 9. Bg5 {[%clk 0:03:08.8]} 9... Be6 {[%clk 0:03:06.1]} 10.
c5 {[%clk 0:03:09.4]} 10... Ne4 {[%clk 0:03:03.2]} 11. Be3 {[%clk 0:03:09.4]}
11... Nxc3 {[%clk 0:02:41.8]} 12. bxc3 {[%clk 0:03:09.5]} 12... Na5 {[%clk
0:02:33.5]} 13. Qa4 {[%clk 0:03:07.7]} 13... b6 {[%clk 0:02:32.4]} 14. Rac1
{[%clk 0:02:47.9]} 14... bxc5 {[%clk 0:02:30.5]} 15. dxc5 {[%clk 0:02:48.8]}
15... Bd7 {[%clk 0:01:49.3]} 16. Qa3 {[%clk 0:02:37.9]} 16... e5 {[%clk
0:01:40.3]} 17. Rfd1 {[%clk 0:02:38.5]} 17... Bc6 {[%clk 0:01:40.7]} 18. c4
{[%clk 0:02:29.3]} 18... d4 {[%clk 0:01:38.7]} 19. Bd2 {[%clk 0:02:29.7]} 19...
Nb7 {[%clk 0:01:38.8]} 20. Bg5 {[%clk 0:02:26.1]} 20... f6 {[%clk 0:01:37.4]}
21. Bh4 {[%clk 0:02:20]} 21... Qe7 {[%clk 0:01:33.3]} 22. Nd2 {[%clk 0:02:15.3]}
22... Qxc5 {[%clk 0:01:24.2]} 23. Qa6 {[%clk 0:02:10.8]} 23... Qb6 {[%clk
0:00:59.3]} 24. Qa3 {[%clk 0:02:11]} 24... Qc5 {[%clk 0:00:48.9]} 25. Qh3 {[%clk
0:02:09.3]} 25... Rfe8 {[%clk 0:00:40.4]} 26. Nb3 {[%clk 0:02:09.8]} 26... Qe7
{[%clk 0:00:37.9]} 27. c5 {[%clk 0:02:10.6]} 27... Rad8 {[%clk 0:00:24.9]} 28.
Ba6 {[%clk 0:02:10.5]} 28... Rd7 {[%clk 0:00:15.8]} 29. Re1 {[%clk 0:02:10.8]}
29... Nd8 {[%clk 0:00:13.9]} 30. Na5 {[%clk 0:02:10.5]} 30... g5 {[%clk
0:00:11.8]} 31. Bg3 {[%clk 0:02:10.8]} 31... Rc7 {[%clk 0:00:09.8]} 32. Bd3
{[%clk 0:02:05.8]} 32... h6 {[%clk 0:00:09.8]} 33. Qf5 {[%clk 0:02:06.3]} 33...
Bd7 {[%clk 0:00:05.9]} 34. Qh7+ {[%clk 0:02:06]} 34... Kf8 {[%clk 0:00:07.3]}
35. c6 {[%clk 0:02:06.9]} 35... Bc8 {[%clk 0:00:06.7]} 36. Bg6 {[%clk
0:02:04.1]} 36... Ne6 {[%clk 0:00:06.5]} 37. Bxe8 {[%clk 0:02:03.8]} 37... Qxe8
{[%clk 0:00:08.3]} 38. Qe4 {[%clk 0:02:03.8]} 38... Qe7 {[%clk 0:00:08.2]} 39.
h4 {[%clk 0:02:04.6]} 39... Kf7 {[%clk 0:00:08.8]} 40. h5 {[%clk 0:02:05.5]}
40... Kg8 {[%clk 0:00:08.2]} 41. Rc4 {[%clk 0:02:02.5]} 41... Nc5 {[%clk
0:00:08.1]} 42. Qd5+ {[%clk 0:02:02.5]} 42... Ne6 {[%clk 0:00:07.6]} 43. Rb1
{[%clk 0:02:02.3]} 43... Kh7 {[%clk 0:00:07.2]} 44. Rb8 {[%clk 0:02:02.5]} 44...
f5 {[%clk 0:00:06.8]} 45. Bxe5 {[%clk 0:02:02.9]} 45... Bxe5 {[%clk 0:00:05.5]}
46. Qxe5 {[%clk 0:02:04.8]} 46... Nf4 {[%clk 0:00:07.1]} 47. Qxe7+ {[%clk
0:02:02]} 47... Rxe7 {[%clk 0:00:08.3]} 48. Rxc8 {[%clk 0:02:03.4]} 1-0

[Event "*** MasterClass Titled Tuesday Blitz"]
[Site "Chess.com"]
[Date "2017.12.12"]
[Round "10"]
[White "matiss90"]
[Black "dusanacns"]
[Result "0-1"]
[WhiteElo "2349"]
[BlackElo "2592"]
[TimeControl "180+2"]
[EndTime "15:18:26 PST"]
[Termination "dusanacns won on time"]

1. e4 {[%clk 0:03:01.9]} 1... c5 {[%clk 0:02:53.4]} 2. Nf3 {[%clk 0:03:02.3]}
2... d6 {[%clk 0:02:54.3]} 3. d4 {[%clk 0:03:02.9]} 3... cxd4 {[%clk 0:02:56.2]}
4. Nxd4 {[%clk 0:03:04.5]} 4... Nf6 {[%clk 0:02:50.1]} 5. Nc3 {[%clk 0:03:04.9]}
5... Nc6 {[%clk 0:02:50.4]} 6. Bc4 {[%clk 0:03:04.3]} 6... e6 {[%clk 0:02:50.3]}
7. Be3 {[%clk 0:03:04.9]} 7... Be7 {[%clk 0:02:50.6]} 8. Qe2 {[%clk 0:03:03.5]}
8... a6 {[%clk 0:02:49.7]} 9. O-O-O {[%clk 0:03:03.6]} 9... Nxd4 {[%clk
0:02:49.2]} 10. Bxd4 {[%clk 0:03:03.1]} 10... b5 {[%clk 0:02:50.3]} 11. Bb3
{[%clk 0:03:03.6]} 11... Bb7 {[%clk 0:02:51]} 12. g4 {[%clk 0:02:18.4]} 12... b4
{[%clk 0:02:42.9]} 13. g5 {[%clk 0:02:08.4]} 13... bxc3 {[%clk 0:02:42.8]} 14.
gxf6 {[%clk 0:02:08.8]} 14... cxb2+ {[%clk 0:02:43.7]} 15. Kb1 {[%clk
0:01:51.7]} 15... Bxf6 {[%clk 0:02:43.8]} 16. e5 {[%clk 0:01:52]} 16... Be7
{[%clk 0:01:53.4]} 17. exd6 {[%clk 0:01:50.2]} 17... Bf6 {[%clk 0:01:51.3]} 18.
d7+ {[%clk 0:01:29.1]} 18... Kf8 {[%clk 0:01:49.1]} 19. Rhg1 {[%clk 0:00:58.8]}
19... g6 {[%clk 0:01:33.4]} 20. Bxe6 {[%clk 0:00:35.1]} 20... fxe6 {[%clk
0:01:33.5]} 21. Qxe6 {[%clk 0:00:31.7]} 21... Kg7 {[%clk 0:01:34.7]} 22. Rge1
{[%clk 0:00:23.2]} 22... Rf8 {[%clk 0:01:15.6]} 23. Bb6 {[%clk 0:00:09.1]} 23...
Qb8 {[%clk 0:01:11.7]} 24. Re3 {[%clk 0:00:08.5]} 24... Qf4 {[%clk 0:01:04.2]}
25. d8=Q {[%clk 0:00:06.3]} 25... Bxd8 {[%clk 0:01:02.5]} 26. Rd7+ {[%clk
0:00:06.5]} 26... Rf7 {[%clk 0:00:58.3]} 27. Bd4+ {[%clk 0:00:05.3]} 27... Kg8
{[%clk 0:00:33.9]} 28. Rxb7 {[%clk 0:00:05.2]} 28... Bg5 {[%clk 0:00:32.5]} 0-1